bitfinex-derivatives/quotes_BTCF0:USTF0_20251108
["timestamp","ask_amount","ask_price","bid_price","bid_amount"]
[1762597873627,0.15677875,102620.0,102610.0,0.43025379]
[1762597874034,0.15677875,102620.0,102610.0,0.23004892]
[1762597874326,0.05835,102610.0,102600.0,0.20020747]
[1762597874518,0.05835,102610.0,102600.0,0.56100747]
[1762597874720,0.18125603,102610.0,102600.0,0.56100747]
[1762597875823,0.18125603,102610.0,102600.0,0.56200747]
[1762597876024,0.26904812,102610.0,102600.0,0.56400747]
[1762597876225,0.14614209,102610.0,102600.0,0.56400747]
[1762597876417,0.14614209,102610.0,102600.0,0.6667571]
[1762597878427,0.14614209,102610.0,102600.0,0.5692441]
[1762597878631,0.14614209,102610.0,102600.0,0.666764]
[1762597884738,0.14614209,102610.0,102600.0,0.816364]
[1762597886041,0.21639006,102610.0,102600.0,0.816364]
[1762597886241,0.12859797,102610.0,102600.0,0.816364]
[1762597894140,0.14614209,102610.0,102600.0,0.816364]
[1762597895146,0.12859431,102610.0,102600.0,0.816364]
[1762597896143,0.14614209,102610.0,102600.0,0.816364]
[1762597897148,0.05835,102610.0,102600.0,0.816364]
[1762597898246,0.12859251,102610.0,102600.0,0.816364]
[1762597898451,0.05835,102610.0,102600.0,0.816364]
[1762597899949,0.05835,102610.0,102600.0,0.455564]
[1762597900149,0.05835,102610.0,102600.0,1.177164]
[1762597901239,0.1285924,102610.0,102600.0,1.177164]
[1762597902246,0.05835,102610.0,102600.0,1.177164]
[1762597903251,0.12859269,102610.0,102600.0,1.177164]
[1762597905152,0.14614209,102610.0,102600.0,1.177164]
[1762597906255,0.05835,102610.0,102600.0,1.177164]
[1762597906451,0.18125603,102610.0,102600.0,1.177164]
[1762597910460,0.18125603,102610.0,102600.0,0.9717199]
[1762597910660,0.18125603,102610.0,102600.0,1.177164]
[1762597912865,0.18125603,102610.0,102600.0,0.8742]
[1762597913067,0.18125603,102610.0,102600.0,0.97692205]
[1762597913564,0.18125603,102610.0,102600.0,1.0796441]
[1762597914164,0.18125603,102610.0,102600.0,1.1771639]
[1762597915164,0.05835,102610.0,102600.0,1.1771639]
[1762597915866,0.14615412,102610.0,102600.0,1.1771639]
[1762597919766,0.14615412,102610.0,102600.0,1.0796441]
[1762597919967,0.14615412,102610.0,102600.0,1.177164]
[1762597922274,0.14615412,102610.0,102600.0,1.0796441]
[1762597923370,0.14615412,102610.0,102600.0,1.177164]
[1762597924975,0.14615412,102610.0,102600.0,0.816364]
[1762597929879,0.12858907,102610.0,102600.0,0.816364]
[1762597930781,0.10723907,102610.0,102600.0,0.816364]
[1762597931881,0.13015907,102610.0,102600.0,0.816364]
[1762597933484,0.10723907,102610.0,102600.0,0.816364]
[1762597933679,0.07023907,102610.0,102600.0,0.816364]
[1762597934983,0.22918192,102620.0,102600.0,0.9138839]
[1762597935286,0.1184578,102620.0,102610.0,0.6637545]
[1762597935484,0.1184578,102620.0,102610.0,0.56103245]
[1762597937282,0.01097873,102620.0,102610.0,0.6637545]
[1762597937488,0.08118032,102620.0,102610.0,0.8133545]
[1762597937789,0.01097873,102620.0,102610.0,0.83971565]
[1762597937980,0.07029911,102620.0,102610.0,1.0569945]
[1762597938183,9.752e-05,102620.0,102610.0,1.0569945]
[1762597938377,9.752e-05,102620.0,102610.0,0.95420726]
[1762597938580,9.752e-05,102620.0,102610.0,0.8515504]
[1762597939888,9.752e-05,102620.0,102610.0,0.8535504]
[1762597940082,9.752e-05,102620.0,102610.0,0.8545504]
[1762597943094,9.752e-05,102620.0,102610.0,0.6109104]
[1762597943393,9.752e-05,102620.0,102610.0,0.8545504]
[1762597945691,9.752e-05,102620.0,102610.0,0.6109104]
[1762597945992,9.752e-05,102620.0,102610.0,0.8545504]
[1762597946195,9.752e-05,102620.0,102610.0,0.6109104]
[1762597946494,9.752e-05,102620.0,102610.0,0.8545504]
[1762597947994,9.752e-05,102620.0,102610.0,0.6109104]
[1762597948890,0.01298752,102620.0,102610.0,0.6109104]
[1762597949088,0.01298752,102620.0,102610.0,0.71356726]
[1762597952297,0.05796752,102620.0,102610.0,0.71356726]
[1762597956098,0.12816911,102620.0,102610.0,0.71356726]
[1762597958499,0.12816911,102620.0,102610.0,1.07436726]
[1762597963203,0.05796752,102620.0,102610.0,1.07436726]
[1762597964197,0.12816911,102620.0,102610.0,1.07436726]
[1762597965505,0.14577164,102620.0,102610.0,0.7246]
[1762597965698,0.14577164,102620.0,102610.0,0.82725686]
[1762597965898,0.05796752,102620.0,102610.0,0.82725686]
[1762597966103,0.12815042,102620.0,102610.0,0.82725686]
[1762597966804,0.12815042,102620.0,102610.0,0.92476726]
[1762597975717,0.12815042,102620.0,102610.0,1.07436726]
[1762597990020,0.12815042,102620.0,102610.0,1.07336726]
[1762597991020,0.12815042,102620.0,102610.0,1.07136726]
[1762597993523,0.12815042,102620.0,102610.0,0.9687104]
[1762597993722,0.12815042,102620.0,102610.0,1.07136726]
[1762597994320,0.10623042,102620.0,102610.0,1.07136726]
[1762597995126,0.12859042,102620.0,102610.0,1.07136726]
[1762597995626,0.08317042,102620.0,102610.0,1.07136726]
[1762597997133,0.08317042,102620.0,102610.0,0.9687104]
[1762597997332,0.10648042,102620.0,102610.0,1.07136726]
[1762597998329,0.10648042,102620.0,102610.0,1.1740712]
[1762598000728,0.08317042,102620.0,102610.0,1.1740712]
[1762598002024,0.07028042,102620.0,102610.0,1.1740712]
[1762598002330,9.752e-05,102620.0,102610.0,1.1740712]
[1762598003935,0.01325752,102620.0,102610.0,1.1740712]
[1762598004429,0.05892752,102620.0,102610.0,0.9687104]
[1762598004637,0.05892752,102620.0,102610.0,1.1740712]
[1762598006235,0.12911042,102620.0,102610.0,1.1740712]
[1762598011835,0.10675042,102620.0,102610.0,1.1740712]
[1762598012038,0.08346282,102620.0,102610.0,1.1740712]
[1762598014742,0.10502282,102620.0,102610.0,1.1740712]
[1762598015042,0.12798282,102620.0,102610.0,1.1740712]
[1762598015342,0.12798282,102620.0,102610.0,1.1760712]
[1762598016042,0.12798282,102620.0,102610.0,1.1770712]
[1762598016243,0.05777752,102620.0,102610.0,1.1770712]
[1762598031255,0.12798282,102620.0,102610.0,1.1770712]
[1762598031757,0.05777752,102620.0,102610.0,1.1770712]
[1762598036772,0.03481752,102620.0,102610.0,1.1770712]
[1762598039273,0.08346282,102620.0,102610.0,1.1770712]
[1762598040273,0.10519282,102620.0,102610.0,1.1770712]
[1762598040676,0.08346282,102620.0,102610.0,1.1770712]
[1762598040866,0.10519282,102620.0,102610.0,1.1770712]
[1762598042371,0.07030282,102620.0,102610.0,1.1770712]
[1762598042673,9.752e-05,102620.0,102610.0,1.20354447]
[1762598043677,0.01273752,102620.0,102610.0,1.20354447]
[1762598044777,0.03446752,102620.0,102610.0,1.20354447]
[1762598044965,0.01273752,102620.0,102610.0,1.20354447]
[1762598045170,9.752e-05,102620.0,102610.0,1.20354447]
[1762598046170,0.07030282,102620.0,102610.0,1.1770712]
[1762598046772,0.08294282,102620.0,102610.0,1.1770712]
[1762598048474,2e-08,102620.0,102610.0,1.5233916]
[1762598048687,0.15760165,102630.0,102620.0,0.0975008]
[1762598048977,0.15760165,102630.0,102620.0,0.915942]
[1762598050179,0.06979753,102630.0,102620.0,0.915942]
[1762598051180,0.06979753,102630.0,102620.0,0.916942]
[1762598051770,0.04702753,102630.0,102620.0,0.916942]
[1762598051981,0.06979753,102630.0,102620.0,0.916942]
[1762598052182,0.06979753,102630.0,102620.0,0.918942]
[1762598056187,0.06979753,102630.0,102620.0,0.94567482]
[1762598058390,0.06979753,102630.0,102620.0,0.84291466]
[1762598060892,0.06979753,102630.0,102620.0,0.81618184]
[1762598063090,0.06979753,102630.0,102620.0,0.84290762]
[1762598063291,0.06979753,102630.0,102620.0,0.81618184]
[1762598063589,0.02529753,102630.0,102620.0,0.81618184]
[1762598064401,0.04702753,102630.0,102620.0,0.81618184]
[1762598064995,0.06979753,102630.0,102620.0,0.81618184]
[1762598065198,0.06979753,102630.0,102620.0,0.84290767]
[1762598066193,0.06979753,102630.0,102620.0,0.81618184]
[1762598066593,0.06979753,102630.0,102620.0,0.84290847]
[1762598071501,0.06979753,102630.0,102620.0,1.20370847]
[1762598075697,0.04702753,102630.0,102620.0,1.20370847]
[1762598075902,0.02529753,102630.0,102620.0,1.20370847]
[1762598076303,0.02529753,102630.0,102620.0,1.22998986]
[1762598076500,0.02529753,102630.0,102620.0,1.47358986]
[1762598077194,0.02529753,102630.0,102620.0,1.22998986]
[1762598077394,0.02529753,102630.0,102620.0,1.47358986]
[1762598077800,0.04668753,102630.0,102620.0,1.47358986]
[1762598078103,0.06835753,102630.0,102620.0,1.47158986]
[1762598078402,0.06835753,102630.0,102620.0,1.47858986]
[1762598078606,0.06835753,102630.0,102620.0,1.23498986]
[1762598078906,0.06835753,102630.0,102620.0,1.47458986]
[1762598079403,0.02529753,102630.0,102620.0,1.47458986]
[1762598079600,0.04668753,102630.0,102620.0,1.23098986]
[1762598079806,0.01372,102640.0,102620.0,1.36359417]
[1762598080103,0.01372,102640.0,102630.0,0.66583951]
[1762598080303,0.01372,102640.0,102630.0,0.66632397]
[1762598080908,0.0249553,102640.0,102630.0,0.66632397]
[1762598081103,0.0249553,102640.0,102630.0,1.08696614]
[1762598081699,0.0249553,102640.0,102630.0,1.08796614]
[1762598082304,0.0249553,102640.0,102630.0,1.06172397]
[1762598082901,0.0249553,102640.0,102630.0,1.06372397]
[1762598083504,0.0249553,102640.0,102630.0,1.06472397]
[1762598084404,0.0249553,102640.0,102630.0,1.33456614]
[1762598085099,0.0249553,102640.0,102630.0,1.09096614]
[1762598085508,0.0249553,102640.0,102630.0,1.33456614]
[1762598085808,0.0472053,102640.0,102630.0,1.33456614]
[1762598086195,0.0472053,102640.0,102630.0,1.09096614]
[1762598086400,0.0472053,102640.0,102630.0,1.33456614]
[1762598087308,0.0472053,102640.0,102630.0,1.30832397]
[1762598087898,0.0472053,102640.0,102630.0,1.06472397]
[1762598089405,0.0249553,102640.0,102630.0,1.06472397]
[1762598090610,0.0249553,102640.0,102630.0,1.09096614]
[1762598091001,0.05831,102650.0,102630.0,1.43205744]
[1762598091205,0.05831,102650.0,102640.0,0.32990672]
[1762598091408,0.05831,102650.0,102640.0,0.35663335]
[1762598091909,0.06931294,102650.0,102640.0,0.35663335]
[1762598092102,0.06931294,102650.0,102640.0,0.45411515]
[1762598092507,0.06931294,102650.0,102640.0,0.45511515]
[1762598092811,0.06931294,102650.0,102640.0,0.45611515]
[1762598095807,0.06931294,102650.0,102640.0,0.60571515]
[1762598096208,0.06931294,102650.0,102640.0,0.57898852]
[1762598102415,0.06931294,102650.0,102640.0,0.48150672]
[1762598103614,0.06931294,102650.0,102640.0,0.57898852]
[1762598106221,0.06931294,102650.0,102640.0,0.60575388]
[1762598107823,0.06931294,102650.0,102640.0,0.50311336]
[1762598108019,0.06931294,102650.0,102640.0,0.60575388]
[1762598112029,0.06931294,102650.0,102640.0,0.50311336]
[1762598112326,0.06931294,102650.0,102640.0,0.476348]
[1762598117028,0.06931294,102650.0,102640.0,0.57898852]
[1762598118436,0.06931294,102650.0,102640.0,0.57899204]
[1762598119425,0.17195698,102650.0,102640.0,0.1516]
[1762598119731,0.24208547,102650.0,102640.0,0.1516]
[1762598119931,0.24208547,102650.0,102640.0,0.25424404]
[1762598121325,0.24208547,102650.0,102640.0,0.35172584]
[1762598121527,0.24208547,102650.0,102640.0,0.25424404]
[1762598121721,0.24208547,102650.0,102640.0,0.35172584]
[1762598121925,0.24208547,102650.0,102640.0,0.1516]
[1762598122231,0.24208547,102650.0,102640.0,0.25424404]
[1762598123530,0.13944143,102650.0,102640.0,0.25324404]
[1762598123731,0.24408547,102650.0,102640.0,0.25224404]
[1762598123926,0.24508547,102650.0,102640.0,0.1496]
[1762598124132,0.24508547,102650.0,102640.0,0.25224404]
[1762598127235,0.14244143,102650.0,102640.0,0.25224404]
[1762598127534,0.24508547,102650.0,102640.0,0.25224404]
[1762598129833,0.24508547,102650.0,102640.0,0.1496]
[1762598130241,0.60588547,102650.0,102640.0,0.1496]
[1762598134737,0.05772,102640.0,102630.0,0.0001463]
[1762598134934,0.71142459,102640.0,102630.0,0.0001463]
[1762598136342,0.71242459,102640.0,102630.0,0.0001463]
[1762598136529,0.62480808,102640.0,102630.0,0.0001463]
[1762598137338,0.62680808,102640.0,102630.0,0.0001463]
[1762598140242,0.69681946,102640.0,102630.0,0.0001463]
[1762598144039,0.05733,102620.0,102610.0,0.54304404]
[1762598145441,0.05733,102620.0,102610.0,0.54404404]
[1762598146237,0.12734138,102620.0,102610.0,0.54504404]
[1762598147535,0.12734138,102620.0,102610.0,0.4424]
[1762598147735,0.12734138,102620.0,102610.0,0.54504404]
[1762598148149,0.12734138,102620.0,102610.0,0.4424]
[1762598148348,0.12734138,102620.0,102610.0,0.54504404]
[1762598148946,0.12734138,102620.0,102610.0,0.18424404]
[1762598149248,0.12734138,102620.0,102610.0,0.54504404]
[1762598149947,0.22998542,102620.0,102610.0,0.54504404]
[1762598150552,0.05733,102620.0,102610.0,0.54504404]
[1762598150852,0.15997404,102620.0,102610.0,0.54504404]
[1762598151553,0.15997404,102620.0,102610.0,0.46544404]
[1762598151747,0.22998542,102620.0,102610.0,0.46544404]
[1762598152847,0.12734138,102620.0,102610.0,0.46544404]
[1762598155957,0.22998542,102620.0,102610.0,0.46544404]
[1762598156339,0.15997404,102620.0,102610.0,0.46544404]
[1762598157357,0.15997404,102620.0,102610.0,0.56295434]
[1762598158055,0.15997404,102620.0,102610.0,0.46544404]
[1762598159254,0.22998542,102620.0,102610.0,0.46544404]
[1762598159959,0.15997404,102620.0,102610.0,0.46544404]
[1762598160254,0.22998542,102620.0,102610.0,0.46544404]
[1762598160550,0.22998542,102620.0,102610.0,0.56295434]
[1762598160755,0.15997404,102620.0,102610.0,0.56295434]
[1762598161254,0.22998542,102620.0,102610.0,0.56295434]
[1762598162255,0.22998542,102620.0,102610.0,0.46544404]
[1762598163856,0.22998542,102620.0,102610.0,0.56295434]
[1762598167863,0.10569138,102620.0,102610.0,0.56295434]
[1762598168063,0.12686138,102620.0,102610.0,0.56295434]
[1762598172462,0.05685,102620.0,102610.0,0.4923062]
[1762598173056,0.05685,102620.0,102610.0,0.5898165]
[1762598177361,0.12686138,102620.0,102610.0,0.56295434]
[1762598177867,0.12686138,102620.0,102610.0,0.71255434]
[1762598178368,0.12686138,102620.0,102610.0,0.71261323]
[1762598178662,0.12686138,102620.0,102610.0,0.5124]
[1762598178863,0.05685,102620.0,102610.0,0.53926449]
[1762598179064,0.05685,102620.0,102610.0,0.5124]
[1762598179566,0.12686138,102620.0,102610.0,0.5124]
[1762598179960,0.12686138,102620.0,102610.0,0.3628]
[1762598181470,0.14446651,102620.0,102610.0,0.3628]
[1762598181865,0.14446651,102620.0,102610.0,0.4603103]
[1762598183069,0.14446651,102620.0,102610.0,0.3628]
[1762598183775,0.14446651,102620.0,102610.0,0.4603103]
[1762598184962,0.14446651,102620.0,102610.0,0.3628]
[1762598186271,0.05685,102620.0,102610.0,0.3628]
[1762598186472,0.17975603,102620.0,102610.0,0.3628]
[1762598187670,0.05685,102620.0,102610.0,0.3628]
[1762598188373,0.05685,102620.0,102610.0,0.4603103]
[1762598188870,0.17975603,102620.0,102610.0,0.4603103]
[1762598189671,0.17975603,102620.0,102610.0,0.6099103]
[1762598190666,0.17975603,102620.0,102610.0,0.5124]
[1762598190972,0.05685,102620.0,102610.0,0.5124]
[1762598192772,0.05685,102620.0,102610.0,0.6099103]
[1762598194370,0.14458877,102620.0,102610.0,0.6099103]
[1762598195973,0.14458877,102620.0,102610.0,0.5124]
[1762598205084,0.05685,102620.0,102610.0,0.5124]
[1762598205388,0.14458877,102620.0,102610.0,0.5124]
[1762598207787,0.05685,102620.0,102610.0,0.5124]
[1762598208280,0.14458877,102620.0,102610.0,0.5124]
[1762598209986,0.14458877,102620.0,102610.0,0.6099103]
[1762598210687,0.14458877,102620.0,102610.0,0.6089103]
[1762598210890,0.14458877,102620.0,102610.0,0.59405212]
[1762598213094,0.14458877,102620.0,102610.0,0.4583103]
[1762598213495,0.14458877,102620.0,102610.0,0.3608]
[1762598214489,0.14458877,102620.0,102610.0,0.4583103]
[1762598218899,0.14458877,102620.0,102610.0,0.6079103]
[1762598219099,0.14458877,102620.0,102610.0,0.5104]
[1762598219699,0.14458877,102620.0,102610.0,0.6079103]
[1762598220404,0.14458877,102620.0,102610.0,0.5104]
[1762598223208,0.05685,102620.0,102610.0,0.5104]
[1762598223395,0.05685,102620.0,102610.0,0.6079103]
[1762598223600,0.05685,102620.0,102610.0,0.5104]
[1762598224005,0.05685,102620.0,102610.0,0.6079103]
[1762598228006,0.14458877,102620.0,102610.0,0.4583103]
[1762598229001,0.17105967,102620.0,102610.0,0.56101323]
[1762598229203,0.1067572,102630.0,102610.0,0.92180373]
[1762598229509,0.1292272,102630.0,102620.0,0.3608]
[1762598229707,0.1292272,102630.0,102620.0,0.4583008]
[1762598229906,0.0589663,102630.0,102620.0,0.4583008]
[1762598230710,0.0599663,102630.0,102620.0,0.4583008]
[1762598231205,0.13017416,102630.0,102620.0,0.4583008]
[1762598231801,0.13017416,102630.0,102620.0,0.3608]
[1762598232002,0.05944,102620.0,102610.0,0.3618]
[1762598232202,0.12965092,102620.0,102610.0,0.4593103]
[1762598232708,0.12965092,102620.0,102610.0,0.4583103]
[1762598235012,0.12965092,102620.0,102610.0,0.4593103]
[1762598236310,0.14717877,102620.0,102610.0,0.4593103]
[1762598236915,0.14717877,102620.0,102610.0,0.0985103]
[1762598237216,0.14717877,102620.0,102610.0,0.4593103]
[1762598237908,0.10141877,102620.0,102610.0,0.56201323]
[1762598238108,0.070195,102620.0,102610.0,0.56201323]
[1762598238417,0.070195,102620.0,102610.0,0.56200469]
[1762598238716,0.083875,102620.0,102610.0,0.56200469]
[1762598238915,0.107165,102620.0,102610.0,0.56200469]
[1762598239509,0.129635,102620.0,102610.0,0.4593103]
[1762598239714,0.129635,102620.0,102610.0,0.56200469]
[1762598242315,0.129635,102620.0,102610.0,0.71160469]
[1762598246317,0.05944,102620.0,102610.0,0.71160469]
[1762598249017,0.05944,102620.0,102610.0,1.07240469]
[1762598251520,0.129635,102620.0,102610.0,1.07240469]
[1762598257032,0.129635,102620.0,102610.0,0.35080469]
[1762598257235,0.129635,102620.0,102610.0,1.07240469]
[1762598263844,0.05944,102620.0,102610.0,1.07240469]
[1762598266245,0.129635,102620.0,102610.0,1.07240469]
[1762598268239,0.070195,102620.0,102610.0,1.07240469]
[1762598269150,0.084075,102620.0,102610.0,1.07240469]
[1762598269447,0.01388,102620.0,102610.0,1.09926517]
[1762598270848,0.01388,102620.0,102610.0,1.099261]
[1762598272250,0.05739,102620.0,102610.0,1.099261]
[1762598285158,0.127585,102620.0,102610.0,1.07240469]
[1762598286260,0.14512877,102620.0,102610.0,1.07240469]
[1762598289961,0.10161877,102620.0,102610.0,1.07240469]
[1762598291060,0.12311877,102620.0,102610.0,1.07240469]
[1762598292867,0.12311877,102620.0,102610.0,0.35080469]
[1762598293063,0.12311877,102620.0,102610.0,1.07240469]
[1762598293365,0.14474877,102620.0,102610.0,1.07240469]
[1762598293755,0.20632809,102630.0,102610.0,1.27260938]
[1762598293960,0.12655206,102630.0,102620.0,0.66368958]
[1762598295063,0.12755206,102630.0,102620.0,0.66368958]
[1762598295370,0.14507507,102630.0,102620.0,0.66368958]
[1762598295869,0.10194507,102630.0,102620.0,0.66368958]
[1762598296368,0.08439981,102630.0,102620.0,0.66368958]
[1762598296562,0.10489981,102630.0,102620.0,0.66368958]
[1762598296869,0.12652981,102630.0,102620.0,0.66368958]
[1762598298468,0.12652981,102630.0,102620.0,0.66468958]
[1762598299871,0.12652981,102630.0,102620.0,1.02548958]
[1762598300375,0.12652981,102630.0,102620.0,0.92277524]
[1762598301371,0.12652981,102630.0,102620.0,0.8201008]
[1762598303865,0.14407507,102630.0,102620.0,0.8201008]
[1762598305764,0.21424941,102630.0,102620.0,0.8201008]
[1762598305963,0.12651064,102630.0,102620.0,0.8201008]
[1762598306472,0.0563363,102630.0,102620.0,0.8201008]
[1762598312678,0.0563363,102630.0,102620.0,0.9697008]
[1762598314378,0.0563363,102630.0,102620.0,0.6089008]
[1762598315679,0.12651064,102630.0,102620.0,0.6089008]
[1762598320077,0.14407507,102630.0,102620.0,0.5114]
[1762598320580,0.14407507,102630.0,102620.0,0.6089008]
[1762598321078,0.0563363,102630.0,102620.0,0.6089008]
[1762598321281,0.0563363,102630.0,102620.0,0.5114]
[1762598321881,0.0563363,102630.0,102620.0,0.6089008]
[1762598322288,0.0563363,102630.0,102620.0,0.5114]
[1762598322476,0.14407507,102630.0,102620.0,0.5114]
[1762598322781,0.14407507,102630.0,102620.0,0.6089008]
[1762598326382,0.0563363,102630.0,102620.0,0.6089008]
[1762598327289,0.17924233,102630.0,102620.0,0.6089008]
[1762598328285,0.2669906,102630.0,102620.0,0.6089008]
[1762598328484,0.14408457,102630.0,102620.0,0.6089008]
[1762598333479,0.14408457,102630.0,102620.0,0.2481008]
[1762598333683,0.14408457,102630.0,102620.0,0.6089008]
[1762598336284,0.21432901,102630.0,102620.0,0.6089008]
[1762598336476,0.12658074,102630.0,102620.0,0.6089008]
[1762598338189,0.14408457,102630.0,102620.0,0.6089008]
[1762598338380,0.14508457,102630.0,102620.0,0.6089008]
[1762598339290,0.12757626,102630.0,102620.0,0.6089008]
[1762598339591,0.12757626,102630.0,102620.0,0.6079008]
[1762598342390,0.08444626,102630.0,102620.0,0.71057524]
[1762598342592,0.0011463,102630.0,102620.0,0.71057524]
[1762598342893,0.0011463,102630.0,102620.0,0.73726942]
[1762598343492,0.07138626,102630.0,102620.0,0.71057524]
[1762598343696,0.0011463,102630.0,102620.0,0.737263]
[1762598345197,0.0011463,102630.0,102620.0,0.71057524]
[1762598345696,0.0011463,102630.0,102620.0,0.7373867]
[1762598346289,0.0011463,102630.0,102620.0,0.71057524]
[1762598348499,0.0011463,102630.0,102620.0,0.56097524]
[1762598351995,0.0001463,102630.0,102620.0,0.56097524]
[1762598352704,0.0001463,102630.0,102620.0,0.56197524]
[1762598353397,0.0001463,102630.0,102620.0,0.56097524]
[1762598353599,0.0001463,102630.0,102620.0,0.56397524]
[1762598353801,0.0130063,102630.0,102620.0,0.56397524]
[1762598356410,0.0581263,102630.0,102620.0,0.56397524]
[1762598360224,0.0130063,102630.0,102620.0,0.56397524]
[1762598360518,0.0130063,102630.0,102620.0,0.66662062]
[1762598360719,0.0361263,102630.0,102620.0,0.66662062]
[1762598361313,0.0130063,102630.0,102620.0,0.66662062]
[1762598361619,0.0001463,102630.0,102620.0,0.66662062]
[1762598362613,0.0001463,102630.0,102620.0,0.81622062]
[1762598366324,0.0001463,102630.0,102620.0,0.84296294]
[1762598370020,0.0001463,102630.0,102620.0,0.94562285]
[1762598370216,0.0001463,102630.0,102620.0,0.84296294]
[1762598370525,0.0001463,102630.0,102620.0,0.94562285]
[1762598371123,0.0001463,102630.0,102620.0,0.84296294]
[1762598371324,0.0001463,102630.0,102620.0,0.94562285]
[1762598372522,0.0944729,102650.0,102640.0,0.0974817]
[1762598372827,0.06741294,102650.0,102640.0,1.05115086]
[1762598374227,0.06741294,102650.0,102640.0,1.02440152]
[1762598374628,0.06841294,102650.0,102640.0,1.02440152]
[1762598376331,0.1386529,102650.0,102640.0,1.02440152]
[1762598377231,0.06841294,102650.0,102640.0,1.02440152]
[1762598382034,0.01200294,102650.0,102640.0,1.02440152]
[1762598382234,0.04706294,102650.0,102640.0,1.02440152]
[1762598382732,0.06841294,102650.0,102640.0,1.02440152]
[1762598383028,0.06841294,102650.0,102640.0,1.17400152]
[1762598383928,0.06841294,102650.0,102640.0,1.07134161]
[1762598385234,0.06841294,102650.0,102640.0,1.17400152]
[1762598387031,0.06841294,102650.0,102640.0,0.9686817]
[1762598387335,0.06841294,102650.0,102640.0,1.17400152]
[1762598387835,0.06841294,102650.0,102640.0,1.02440152]
[1762598389837,0.06841294,102650.0,102640.0,1.05113952]
[1762598392028,0.06841294,102650.0,102640.0,1.02440152]
[1762598392236,0.06841294,102650.0,102640.0,1.05114511]
[1762598394040,0.06841294,102650.0,102640.0,0.9484852]
[1762598395636,0.06841294,102650.0,102640.0,0.92174161]
[1762598395935,0.06841294,102650.0,102640.0,0.94849416]
[1762598396739,0.06841294,102650.0,102640.0,0.92174161]
[1762598399844,0.1386529,102650.0,102640.0,0.92174161]
[1762598400739,0.1386529,102650.0,102640.0,1.07134161]
[1762598403345,0.1386529,102650.0,102630.0,0.0001463]
[1762598403346,0.0589,102640.0,102630.0,0.0001463]
[1762598403539,0.33440125,102640.0,102630.0,0.0001463]
[1762598404233,0.26421982,102640.0,102630.0,0.0001463]
[1762598404634,0.62501982,102640.0,102630.0,0.0001463]
[1762598405144,0.62501982,102640.0,102630.0,0.0011463]
[1762598405549,0.71276809,102640.0,102630.0,0.0011463]
[1762598405936,0.0589,102630.0,102620.0,0.3608]
[1762598406133,0.16155991,102630.0,102620.0,0.3608]
[1762598406337,0.23165445,102630.0,102620.0,0.3608]
[1762598406936,0.23165445,102630.0,102610.0,0.46345991]
[1762598406937,0.0589,102620.0,102610.0,0.46360621]
[1762598408140,0.0589,102620.0,102610.0,0.56111641]
[1762598409441,0.0589,102620.0,102610.0,0.71071641]
[1762598409948,0.0599,102620.0,102610.0,0.71071641]
[1762598410446,0.0609,102620.0,102610.0,0.71071641]
[1762598415256,0.0609,102620.0,102610.0,0.6080565]
[1762598415549,0.0609,102620.0,102610.0,0.71071641]
[1762598418560,0.0609,102620.0,102610.0,0.61320621]
[1762598420244,0.0609,102620.0,102610.0,0.71071641]
[1762598420446,0.0609,102620.0,102610.0,0.61320621]
[1762598422046,0.0609,102620.0,102610.0,0.71071641]
[1762598422246,0.0609,102620.0,102610.0,0.61320621]
[1762598422557,0.0609,102620.0,102610.0,0.6080565]
[1762598423050,0.0609,102620.0,102610.0,0.5105463]
[1762598425358,0.13099454,102620.0,102610.0,0.5105463]
[1762598426354,0.0609,102620.0,102610.0,0.5105463]
[1762598426555,0.25135565,102620.0,102610.0,0.5105463]
[1762598427055,0.14864827,102620.0,102610.0,0.0001463]
[1762598431061,0.50944827,102620.0,102610.0,0.0001463]
[1762598431563,0.61215565,102620.0,102610.0,0.0001463]
[1762598432162,0.50944827,102620.0,102610.0,0.0001463]
[1762598433366,0.4217,102620.0,102610.0,0.0001463]
[1762598433765,0.54460603,102620.0,102610.0,0.0001463]
[1762598433962,0.18380603,102620.0,102610.0,0.0001463]
[1762598434165,0.14859462,102620.0,102610.0,0.3609463]
[1762598434466,0.0609,102620.0,102610.0,0.3609463]
[1762598435167,0.0609,102620.0,102610.0,0.0001463]
[1762598435854,0.18380603,102620.0,102610.0,0.0001463]
[1762598436565,0.18380603,102620.0,102610.0,4.999e-05]
[1762598436566,0.61211814,102620.0,102610.0,4.999e-05]
[1762598436957,0.5945779,102620.0,102610.0,4.999e-05]
[1762598441267,0.52440738,102620.0,102610.0,4.999e-05]
[1762598441471,0.61211814,102620.0,102610.0,4.999e-05]
[1762598443168,0.52440738,102620.0,102610.0,4.999e-05]
[1762598444273,0.61207341,102620.0,102610.0,4.999e-05]
[1762598445272,0.52440738,102620.0,102610.0,4.999e-05]
[1762598447373,0.64731341,102620.0,102610.0,4.999e-05]
[1762598451179,0.54460603,102620.0,102610.0,4.999e-05]
[1762598451379,0.64731341,102620.0,102610.0,4.999e-05]
[1762598455984,0.73504653,102620.0,102610.0,4.999e-05]
[1762598456387,0.6121405,102620.0,102610.0,4.999e-05]
[1762598461783,0.52440738,102620.0,102610.0,4.999e-05]
[1762598461983,0.64731341,102620.0,102610.0,4.999e-05]
[1762598462987,0.64731341,102620.0,102610.0,9.99e-06]
[1762598465998,0.52440738,102620.0,102610.0,9.99e-06]
[1762598466194,0.64732247,102620.0,102610.0,9.99e-06]
[1762598466397,0.05715,102600.0,102590.0,0.5104]
[1762598466703,0.05715,102600.0,102590.0,0.4583293]
[1762598467401,0.26786911,102600.0,102590.0,0.4583293]
[1762598467804,0.14495402,102600.0,102590.0,0.4583293]
[1762598468304,0.14495402,102600.0,102590.0,0.4603293]
[1762598468699,0.14495402,102600.0,102590.0,0.4613293]
[1762598471209,0.05715,102600.0,102590.0,0.4613293]
[1762598472708,0.05715,102600.0,102590.0,0.3638]
[1762598473909,0.05715,102600.0,102590.0,0.4613292]
[1762598476516,0.12739189,102600.0,102590.0,0.4613292]
[1762598482020,0.12739189,102600.0,102590.0,0.1005292]
[1762598482224,0.12739189,102600.0,102590.0,0.4613292]
[1762598484332,0.23013819,102600.0,102590.0,0.4613292]
[1762598484526,0.23013819,102600.0,102590.0,0.5640755]
[1762598485633,0.23013819,102600.0,102590.0,0.5640756]
[1762598485828,0.1598963,102600.0,102590.0,0.4665463]
[1762598486130,0.24770032,102600.0,102590.0,0.4665463]
[1762598487334,0.24770032,102600.0,102590.0,0.5640756]
[1762598489738,0.24770032,102600.0,102590.0,0.4665463]
[1762598489935,0.24770032,102600.0,102590.0,0.5640756]
[1762598491034,0.1598963,102600.0,102590.0,0.5640756]
[1762598492431,0.24770032,102600.0,102590.0,0.5640756]
[1762598494440,0.1598963,102600.0,102590.0,0.5640756]
[1762598495242,0.24770032,102600.0,102590.0,0.5640756]
[1762598497539,0.24770032,102600.0,102590.0,0.4613293]
[1762598498633,0.24770032,102600.0,102590.0,0.3638]
[1762598499240,0.24770032,102600.0,102590.0,0.4665463]
[1762598500537,0.24770032,102600.0,102590.0,0.5640756]